[Event "15e Open International d'Echecs Mont de Marsan"]
[Site "Mont de Marsan, France"]
[Date "????.??.??"]
[Round "4.2"]
[White "LEMEAUX, DAVID"]
[Black "PENG LI, MIN"]
[Result "0-1"]
[TimeControl "60 minutes + 30 secondes per move"]
[WhiteTitle "FM"]
[BlackTitle "IM"]
[WhiteElo "2239"]
[BlackElo "2442"]

1. d4 {[%clk 01:30:56]} {[%emt 00:00:03]} Nf6 {[%clk 01:30:42]} {[%emt
00:00:18]} 2. Nf3 {[%clk 01:31:19]} {[%emt 00:00:07]} g6 {[%clk 01:31:07]}
{[%emt 00:00:05]} 3. g3 {[%clk 01:31:33]} {[%emt 00:00:16]} Bg7 {[%clk
01:31:32]} {[%emt 00:00:05]} 4. Bg2 {[%clk 01:31:56]} {[%emt 00:00:07]} O-O
{[%clk 01:31:49]} {[%emt 00:00:14]} 5. O-O {[%clk 01:32:19]} {[%emt 00:00:06]}
d5 {[%clk 01:32:13]} {[%emt 00:00:06]} 6. c4 {[%clk 01:32:13]} {[%emt
00:00:36]} dxc4 {[%clk 01:32:32]} {[%emt 00:00:11]} 7. Na3 {[%clk 01:32:33]}
{[%emt 00:00:10]} Nc6 {[%clk 01:32:56]} {[%emt 00:00:06]} 8. Nxc4 {[%clk
01:31:54]} {[%emt 00:01:08]} Be6 {[%clk 01:33:19]} {[%emt 00:00:08]} 9. b3
{[%clk 01:30:09]} {[%emt 00:02:15]} a5 {[%clk 01:33:45]} {[%emt 00:00:03]} 10.
a4 {[%clk 01:27:04]} {[%emt 00:03:35]} Bd5 {[%clk 01:34:06]} {[%emt 00:00:09]}
11. Bb2 {[%clk 01:26:02]} {[%emt 00:01:31]} Qb8 {[%clk 01:33:05]} {[%emt
00:01:32]} 12. Rc1 {[%clk 01:22:29]} {[%emt 00:04:03]} Rd8 {[%clk 01:33:16]}
{[%emt 00:00:19]} 13. Nfe5 {[%clk 01:17:24]} {[%emt 00:05:35]} Bxg2 {[%clk
01:29:49]} {[%emt 00:03:58]} 14. Kxg2 {[%clk 01:17:43]} {[%emt 00:00:11]} Nb4
{[%clk 01:11:40]} {[%emt 00:18:38]} 15. Qe1 {[%clk 01:11:02]} {[%emt 00:07:11]}
Qa7 {[%clk 01:09:12]} {[%emt 00:02:58]} 16. Nxa5 {[%clk 01:05:16]} {[%emt
00:06:16]} Qxa5 {[%clk 01:05:50]} {[%emt 00:03:53]} 17. Rc5 {[%clk 01:05:22]}
{[%emt 00:00:23]} Qa6 {[%clk 01:00:30]} {[%emt 00:05:50]} 18. Qxb4 {[%clk
01:03:13]} {[%emt 00:02:39]} Qxe2 {[%clk 01:00:55]} {[%emt 00:00:05]} 19. Qc4
{[%clk 00:51:16]} {[%emt 00:12:27]} Qxb2 {[%clk 00:54:38]} {[%emt 00:06:47]} 20.
Qxf7+ {[%clk 00:51:22]} {[%emt 00:00:23]} Kh8 {[%clk 00:55:00]} {[%emt
00:00:09]} 21. Qe6 {[%clk 00:50:56]} {[%emt 00:00:56]} Rf8 {[%clk 00:55:21]}
{[%emt 00:00:08]} 22. Rxc7 {[%clk 00:50:25]} {[%emt 00:01:01]} Ne4 {[%clk
00:48:02]} {[%emt 00:07:49]} 23. Nxg6+ {[%clk 00:45:20]} {[%emt 00:05:36]} hxg6
{[%clk 00:48:26]} {[%emt 00:00:06]} 24. Qxe4 {[%clk 00:45:14]} {[%emt
00:00:35]} Qxb3 {[%clk 00:44:01]} {[%emt 00:04:56]} 25. Rxb7 {[%clk 00:39:57]}
{[%emt 00:05:48]} Qxa4 {[%clk 00:34:43]} {[%emt 00:09:48]} 26. Qh4+ {[%clk
00:15:40]} {[%emt 00:24:46]} Kg8 {[%clk 00:35:09]} {[%emt 00:00:05]} 27. Qxe7
{[%clk 00:15:54]} {[%emt 00:00:15]} Qc6+ {[%clk 00:33:41]} {[%emt 00:01:58]} 28.
Kg1 {[%clk 00:14:37]} {[%emt 00:01:46]} Qf6 {[%clk 00:34:07]} {[%emt 00:00:05]}
29. Qe4 {[%clk 00:11:39]} {[%emt 00:03:27]} Rae8 {[%clk 00:33:07]} {[%emt
00:01:30]} 30. Qg4 {[%clk 00:08:24]} {[%emt 00:03:44]} Re1 {[%clk 00:32:51]}
{[%emt 00:00:48]} 31. f3 {[%clk 00:05:07]} {[%emt 00:03:47]} Rxf1+ {[%clk
00:33:13]} {[%emt 00:00:08]} 0-1

[ePGN "0.1;DGT LiveChess/2.2.3"]

[Event "15e Open International d'Echecs Mont de Marsan"]
[Site "Mont de Marsan, France"]
[Date "????.??.??"]
[Round "5.2"]
[White "MAHIEU, LUC"]
[Black "BERNAL MORO, LUIS JAVIER"]
[Result "0-1"]
[TimeControl "60 minutes + 30 secondes per move"]
[BlackTitle "IM"]
[WhiteElo "1962"]
[BlackElo "2418"]

1. e4 {[%clk 01:30:44]} {[%emt 00:00:12]} c5 {[%clk 01:30:48]} {[%emt
00:00:13]} 2. Nf3 {[%clk 01:31:05]} {[%emt 00:00:08]} d6 {[%clk 01:31:02]}
{[%emt 00:00:17]} 3. d4 {[%clk 01:31:26]} {[%emt 00:00:08]} cxd4 {[%clk
01:31:20]} {[%emt 00:00:13]} 4. Nxd4 {[%clk 01:31:50]} {[%emt 00:00:06]} Nf6
{[%clk 01:31:47]} {[%emt 00:00:03]} 5. Nc3 {[%clk 01:32:13]} {[%emt 00:00:07]}
Nc6 {[%clk 01:31:28]} {[%emt 00:00:50]} 6. Bg5 {[%clk 01:32:33]} {[%emt
00:00:10]} e6 {[%clk 01:30:50]} {[%emt 00:01:08]} 7. Qd2 {[%clk 01:32:45]}
{[%emt 00:00:17]} Be7 {[%clk 01:30:48]} {[%emt 00:00:34]} 8. O-O-O {[%clk
01:33:05]} {[%emt 00:00:09]} O-O {[%clk 01:31:14]} {[%emt 00:00:05]} 9. f4
{[%clk 01:33:20]} {[%emt 00:00:13]} h6 {[%clk 01:28:53]} {[%emt 00:02:52]} 10.
Bh4 {[%clk 01:28:39]} {[%emt 00:05:11]} e5 {[%clk 01:27:33]} {[%emt 00:01:50]}
11. Nxc6 {[%clk 01:14:16]} {[%emt 00:14:53]} bxc6 {[%clk 01:27:56]} {[%emt
00:00:08]} 12. fxe5 {[%clk 01:14:41]} {[%emt 00:00:04]} dxe5 {[%clk 01:28:18]}
{[%emt 00:00:08]} 13. Qxd8 {[%clk 01:14:55]} {[%emt 00:00:16]} Rxd8 {[%clk
01:22:02]} {[%emt 00:06:47]} 14. Bc4 {[%clk 01:09:18]} {[%emt 00:06:07]} Bg4
{[%clk 01:17:06]} {[%emt 00:05:26]} 15. Rxd8+ {[%clk 01:09:06]} {[%emt
00:00:41]} Bxd8 {[%clk 01:15:32]} {[%emt 00:02:05]} 16. Bg3 {[%clk 01:03:46]}
{[%emt 00:05:50]} Bc7 {[%clk 01:11:45]} {[%emt 00:04:17]} 17. Rf1 {[%clk
00:58:12]} {[%emt 00:06:03]} Kf8 {[%clk 01:00:35]} {[%emt 00:11:41]} 18. h3
{[%clk 00:54:09]} {[%emt 00:04:33]} Bd7 {[%clk 00:44:31]} {[%emt 00:16:35]} 19.
Rd1 {[%clk 00:38:53]} {[%emt 00:15:46]} Be8 {[%clk 00:41:42]} {[%emt 00:03:19]}
20. Bh4 {[%clk 00:33:06]} {[%emt 00:06:16]} Ke7 {[%clk 00:36:59]} {[%emt
00:05:14]} 21. Be2 {[%clk 00:24:12]} {[%emt 00:09:24]} Bb6 {[%clk 00:30:07]}
{[%emt 00:07:22]} 22. Bxf6+ {[%clk 00:22:27]} {[%emt 00:02:15]} Kxf6 {[%clk
00:29:59]} {[%emt 00:00:38]} 23. Bg4 {[%clk 00:21:46]} {[%emt 00:01:10]} Rd8
{[%clk 00:24:58]} {[%emt 00:05:32]} 24. Rxd8 {[%clk 00:21:08]} {[%emt
00:01:09]} Bxd8 {[%clk 00:25:19]} {[%emt 00:00:08]} 25. Kd2 {[%clk 00:21:03]}
{[%emt 00:00:34]} Kg5 {[%clk 00:20:00]} {[%emt 00:05:49]} 26. Ke3 {[%clk
00:19:12]} {[%emt 00:02:21]} Bb6+ {[%clk 00:18:19]} {[%emt 00:02:11]} 27. Kf3
{[%clk 00:19:23]} {[%emt 00:00:18]} h5 {[%clk 00:14:52]} {[%emt 00:03:58]} 28.
Bc8 {[%clk 00:19:39]} {[%emt 00:00:15]} h4 {[%clk 00:15:11]} {[%emt 00:00:12]}
29. Na4 {[%clk 00:17:40]} {[%emt 00:02:28]} Bg1 {[%clk 00:14:59]} {[%emt
00:00:41]} 30. b4 {[%clk 00:15:30]} {[%emt 00:02:40]} f6 {[%clk 00:13:06]}
{[%emt 00:02:23]} 31. Nc5 {[%clk 00:13:50]} {[%emt 00:02:10]} Bh5+ {[%clk
00:07:44]} {[%emt 00:05:52]} 32. Bg4 {[%clk 00:11:43]} {[%emt 00:02:37]} Bxg4+
{[%clk 00:08:02]} {[%emt 00:00:12]} 33. hxg4 {[%clk 00:12:11]} {[%emt
00:00:02]} Bxc5 {[%clk 00:08:27]} {[%emt 00:00:05]} 34. bxc5 {[%clk 00:12:39]}
{[%emt 00:00:02]} g6 {[%clk 00:08:42]} {[%emt 00:00:15]} 35. a4 {[%clk
00:11:55]} {[%emt 00:01:14]} a5 {[%clk 00:08:54]} {[%emt 00:00:18]} 36. c3
{[%clk 00:12:17]} {[%emt 00:00:08]} f5 {[%clk 00:09:13]} {[%emt 00:00:11]} 37.
gxf5 {[%clk 00:11:42]} {[%emt 00:01:04]} gxf5 {[%clk 00:09:38]} {[%emt
00:00:05]} 38. exf5 {[%clk 00:11:58]} {[%emt 00:00:15]} Kxf5 {[%clk 00:10:04]}
{[%emt 00:00:04]} 39. Ke3 {[%clk 00:12:00]} {[%emt 00:00:28]} e4 {[%clk
00:10:03]} {[%emt 00:00:31]} 40. Kd4 {[%clk 00:12:08]} {[%emt 00:00:21]} Kf4
{[%clk 00:10:22]} {[%emt 00:00:11]} 41. c4 {[%clk 00:12:27]} {[%emt 00:00:11]}
e3 {[%clk 00:09:51]} {[%emt 00:01:01]} 42. Kd3 {[%clk 00:12:49]} {[%emt
00:00:08]} h3 {[%clk 00:09:52]} {[%emt 00:00:29]} 43. Kd4 {[%emt 00:00:31]}
Ke5+ {[%emt 00:00:01]} 0-1

[Event "15e Open International d'Echecs Mont de Marsan"]
[Site "Mont de Marsan, France"]
[Date "????.??.??"]
[Round "5.3"]
[White "JEREZ PEREZ, ALFONSO"]
[Black "BOGDANOV, EGOR"]
[Result "1/2-1/2"]
[TimeControl "60 minutes + 30 secondes per move"]
[WhiteTitle "IM"]
[BlackTitle "IM"]
[WhiteElo "2418"]
[BlackElo "2410"]

1. e4 {[%clk 01:30:56]} {[%emt 00:00:03]} c5 {[%clk 01:30:55]} {[%emt
00:00:05]} 2. Nf3 {[%clk 01:30:59]} {[%emt 00:00:27]} d6 {[%clk 01:30:40]}
{[%emt 00:00:45]} 3. Bb5+ {[%clk 01:30:48]} {[%emt 00:00:41]} Nd7 {[%clk
01:31:02]} {[%emt 00:00:08]} 4. a4 {[%clk 01:30:48]} {[%emt 00:00:30]} a6
{[%clk 01:31:10]} {[%emt 00:00:22]} 5. Bc4 {[%clk 01:31:08]} {[%emt 00:00:10]}
Ngf6 {[%clk 01:29:25]} {[%emt 00:02:15]} 6. Nc3 {[%clk 01:30:44]} {[%emt
00:00:54]} b6 {[%clk 01:28:36]} {[%emt 00:01:19]} 7. O-O {[%clk 01:28:09]}
{[%emt 00:03:04]} Bb7 {[%clk 01:28:50]} {[%emt 00:00:16]} 8. Re1 {[%clk
01:28:18]} {[%emt 00:00:20]} Ne5 {[%clk 01:18:27]} {[%emt 00:10:53]} 9. Nxe5
{[%clk 01:25:56]} {[%emt 00:02:52]} dxe5 {[%clk 01:18:55]} {[%emt 00:00:03]} 10.
d3 {[%clk 01:25:42]} {[%emt 00:00:43]} e6 {[%clk 01:19:21]} {[%emt 00:00:04]}
11. f4 {[%clk 01:12:56]} {[%emt 00:13:16]} exf4 {[%clk 01:18:40]} {[%emt
00:01:12]} 12. Bxf4 {[%clk 01:13:21]} {[%emt 00:00:05]} Be7 {[%clk 01:19:05]}
{[%emt 00:00:04]} 13. Qf3 {[%clk 01:11:21]} {[%emt 00:02:30]} O-O {[%clk
01:19:14]} {[%emt 00:00:21]} 14. Rf1 {[%clk 01:08:30]} {[%emt 00:03:21]} Bc6
{[%clk 01:14:03]} {[%emt 00:05:42]} 15. Qh3 {[%clk 01:02:44]} {[%emt 00:06:16]}
Nxe4 {[%clk 00:58:34]} {[%emt 00:15:59]} 16. Nxe4 {[%clk 00:54:10]} {[%emt
00:09:04]} Bxe4 {[%clk 00:58:59]} {[%emt 00:00:06]} 17. Bxe6 {[%clk 00:54:12]}
{[%emt 00:00:28]} Bg6 {[%clk 00:57:47]} {[%emt 00:01:41]} 18. Bc4 {[%clk
00:53:43]} {[%emt 00:00:59]} Bf6 {[%clk 00:58:11]} {[%emt 00:00:06]} 19. c3
{[%clk 00:52:06]} {[%emt 00:02:06]} b5 {[%clk 00:51:00]} {[%emt 00:07:42]} 20.
axb5 {[%clk 00:47:22]} {[%emt 00:05:15]} axb5 {[%clk 00:51:21]} {[%emt
00:00:09]} 21. Rxa8 {[%clk 00:47:06]} {[%emt 00:00:45]} Qxa8 {[%clk 00:51:50]}
{[%emt 00:00:02]} 22. Bxb5 {[%clk 00:46:59]} {[%emt 00:00:37]} Qa2 {[%clk
00:51:05]} {[%emt 00:01:15]} 23. Bc1 {[%clk 00:42:43]} {[%emt 00:04:46]} Rd8
{[%clk 00:51:20]} {[%emt 00:00:16]} 24. Qf3 {[%clk 00:41:22]} {[%emt 00:01:50]}
Qb3 {[%clk 00:48:05]} {[%emt 00:03:45]} 25. Bc4 {[%clk 00:40:15]} {[%emt
00:01:37]} Qc2 {[%clk 00:48:02]} {[%emt 00:00:33]} 26. Qe3 {[%clk 00:37:05]}
{[%emt 00:03:40]} Bxd3 {[%clk 00:44:44]} {[%emt 00:03:49]} 27. Bxd3 {[%clk
00:36:53]} {[%emt 00:00:41]} Qxd3 {[%clk 00:45:12]} {[%emt 00:00:02]} 28. Qxc5
{[%clk 00:36:01]} {[%emt 00:01:22]} Re8 {[%clk 00:45:22]} {[%emt 00:00:20]} 29.
Qf2 {[%clk 00:32:11]} {[%emt 00:04:19]} h6 {[%clk 00:41:40]} {[%emt 00:04:13]}
30. Re1 {[%clk 00:28:45]} {[%emt 00:03:55]} Rxe1+ {[%clk 00:41:05]} {[%emt
00:01:05]} 31. Qxe1 {[%clk 00:28:51]} {[%emt 00:00:24]} Qb1 {[%clk 00:40:41]}
{[%emt 00:00:54]} 32. Kf1 {[%clk 00:28:02]} {[%emt 00:01:19]} Kh7 {[%clk
00:40:52]} {[%emt 00:00:19]} 33. g3 {[%clk 00:26:57]} {[%emt 00:01:35]} Qc2
{[%clk 00:39:36]} {[%emt 00:01:46]} 34. Qd2 {[%clk 00:26:04]} {[%emt 00:01:23]}
Qe4 {[%clk 00:39:23]} {[%emt 00:00:43]} 35. Qf2 {[%clk 00:24:18]} {[%emt
00:02:16]} Qh1+ {[%clk 00:36:06]} {[%emt 00:03:46]} 36. Qg1 {[%clk 00:24:35]}
{[%emt 00:00:13]} Qf3+ {[%clk 00:36:12]} {[%emt 00:00:24]} 37. Qf2 {[%clk
00:22:59]} {[%emt 00:02:06]} Qh1+ {[%clk 00:36:33]} {[%emt 00:00:09]} 38. Qg1
{[%clk 00:23:16]} {[%emt 00:00:13]} Qf3+ {[%clk 00:36:59]} {[%emt 00:00:04]}
1/2-1/2

[Event "15e Open International d'Echecs Mont de Marsan"]
[Site "Mont de Marsan, France"]
[Date "????.??.??"]
[Round "5.1"]
[White "PENG LI, MIN"]
[Black "PRIE, ERIC"]
[Result "1/2-1/2"]
[TimeControl "60 minutes + 30 secondes per move"]
[WhiteTitle "IM"]
[BlackTitle "GM"]
[WhiteElo "2442"]
[BlackElo "2482"]

1. e4 {[%clk 01:30:59]} d5 {[%clk 01:30:30]} {[%emt 00:00:28]} 2. exd5 {[%clk
01:31:22]} {[%emt 00:00:07]} Qxd5 {[%clk 01:30:52]} {[%emt 00:00:08]} 3. Nc3
{[%clk 01:31:45]} {[%emt 00:00:07]} Qa5 {[%clk 01:31:13]} {[%emt 00:00:09]} 4.
d4 {[%clk 01:32:07]} {[%emt 00:00:07]} Nf6 {[%clk 01:31:34]} {[%emt 00:00:09]}
5. Nf3 {[%clk 01:30:45]} {[%emt 00:01:53]} Bf5 {[%clk 01:31:55]} {[%emt
00:00:08]} 6. Ne5 {[%clk 01:30:11]} {[%emt 00:01:04]} c6 {[%clk 01:32:18]}
{[%emt 00:00:08]} 7. Bc4 {[%clk 01:30:14]} {[%emt 00:00:27]} e6 {[%clk
01:32:40]} {[%emt 00:00:08]} 8. g4 {[%clk 01:30:10]} {[%emt 00:00:34]} Bg6
{[%clk 01:33:00]} {[%emt 00:00:09]} 9. h4 {[%clk 01:30:17]} {[%emt 00:00:24]}
Nbd7 {[%clk 01:33:16]} {[%emt 00:00:14]} 10. Nxd7 {[%clk 01:30:34]} {[%emt
00:00:14]} Nxd7 {[%clk 01:33:36]} {[%emt 00:00:09]} 11. h5 {[%clk 01:30:57]}
{[%emt 00:00:07]} Be4 {[%clk 01:33:58]} {[%emt 00:00:07]} 12. O-O {[%clk
01:31:23]} {[%emt 00:00:05]} Bd5 {[%clk 01:34:20]} {[%emt 00:00:08]} 13. Nxd5
{[%clk 01:31:40]} {[%emt 00:00:14]} cxd5 {[%clk 01:34:42]} {[%emt 00:00:08]} 14.
Bd3 {[%clk 01:32:06]} {[%emt 00:00:03]} g6 {[%clk 01:24:02]} {[%emt 00:11:10]}
15. h6 {[%clk 01:25:50]} {[%emt 00:06:47]} Bd6 {[%clk 01:16:02]} {[%emt
00:08:30]} 16. c3 {[%clk 01:25:27]} {[%emt 00:00:53]} O-O-O {[%clk 01:14:59]}
{[%emt 00:01:33]} 17. f4 {[%clk 01:25:10]} {[%emt 00:00:46]} Kb8 {[%clk
01:12:29]} {[%emt 00:03:01]} 18. Bd2 {[%clk 01:10:36]} {[%emt 00:15:02]} Rc8
{[%clk 01:09:13]} {[%emt 00:03:49]} 19. Qe2 {[%clk 01:08:00]} {[%emt 00:03:05]}
Qd8 {[%clk 00:58:40]} {[%emt 00:11:03]} 20. Kg2 {[%clk 01:08:01]} {[%emt
00:00:29]} Re8 {[%clk 00:55:21]} {[%emt 00:03:50]} 21. Rae1 {[%clk 01:05:24]}
{[%emt 00:03:07]} f6 {[%clk 00:43:02]} {[%emt 00:12:48]} 22. Bb5 {[%clk
01:00:23]} {[%emt 00:05:31]} a6 {[%clk 00:39:51]} {[%emt 00:03:42]} 23. Ba4
{[%clk 01:00:39]} {[%emt 00:00:14]} Re7 {[%clk 00:38:52]} {[%emt 00:01:30]} 24.
Qf3 {[%clk 01:00:41]} {[%emt 00:00:28]} Nb6 {[%clk 00:38:55]} {[%emt 00:00:26]}
25. Bb3 {[%clk 01:00:58]} {[%emt 00:00:14]} Nc4 {[%clk 00:28:37]} {[%emt
00:10:47]} 26. Bc1 {[%clk 01:01:13]} {[%emt 00:00:14]} Re8 {[%clk 00:28:28]}
{[%emt 00:00:39]} 27. Rf2 {[%clk 00:59:30]} {[%emt 00:02:13]} Qd7 {[%clk
00:27:13]} {[%emt 00:01:45]} 28. Rfe2 {[%clk 00:47:53]} {[%emt 00:12:07]} Ka8
{[%clk 00:26:37]} {[%emt 00:01:06]} 29. Kf1 {[%clk 00:46:53]} {[%emt 00:01:31]}
Bb8 {[%clk 00:26:04]} {[%emt 00:01:03]} 30. Rd1 {[%clk 00:26:26]} {[%emt
00:20:57]} Nd6 {[%clk 00:24:21]} {[%emt 00:02:12]} 31. Ke1 {[%clk 00:26:35]}
{[%emt 00:00:21]} f5 {[%clk 00:22:06]} {[%emt 00:02:45]} 32. g5 {[%clk
00:27:01]} {[%emt 00:00:04]} Ne4 {[%clk 00:22:23]} {[%emt 00:00:13]} 33. a3
{[%clk 00:25:54]} {[%emt 00:01:37]} Bd6 {[%clk 00:22:25]} {[%emt 00:00:28]} 34.
Re3 {[%clk 00:20:37]} {[%emt 00:05:47]} Re7 {[%clk 00:17:51]} {[%emt 00:05:03]}
35. Bc2 {[%clk 00:18:43]} {[%emt 00:02:24]} Qc7 {[%clk 00:17:53]} {[%emt
00:00:29]} 36. Red3 {[%clk 00:17:56]} {[%emt 00:01:17]} Qb6 {[%clk 00:15:41]}
{[%emt 00:02:42]} 37. Kf1 {[%clk 00:17:42]} {[%emt 00:00:44]} Rec7 {[%clk
00:15:31]} {[%emt 00:00:39]} 38. Kg2 {[%clk 00:16:56]} {[%emt 00:01:17]} Ka7
{[%clk 00:05:36]} {[%emt 00:10:25]} 1/2-1/2

[ePGN "0.1;DGT LiveChess/2.2.3"]

[Event "15e Open International d'Echecs Mont de Marsan"]
[Site "Mont de Marsan, France"]
[Date "????.??.??"]
[Round "6.3"]
[White "ROSELLE, TRISTAN"]
[Black "JEREZ PEREZ, ALFONSO"]
[Result "1/2-1/2"]
[TimeControl "60 minutes + 30 secondes per move"]
[BlackTitle "IM"]
[WhiteElo "2155"]
[BlackElo "2418"]

1. e4 {[%clk 01:28:51]} {[%emt 00:02:08]} e6 {[%clk 01:30:41]} {[%emt
00:00:20]} 2. d4 {[%clk 01:29:05]} {[%emt 00:00:16]} d5 {[%clk 01:31:03]}
{[%emt 00:00:07]} 3. Nd2 {[%clk 01:29:24]} {[%emt 00:00:11]} c5 {[%clk
01:31:14]} {[%emt 00:00:20]} 4. exd5 {[%clk 01:29:23]} {[%emt 00:00:31]} exd5
{[%clk 01:31:34]} {[%emt 00:00:10]} 5. Ngf3 {[%clk 01:29:26]} {[%emt 00:00:26]}
Nf6 {[%clk 01:31:51]} {[%emt 00:00:14]} 6. Bb5+ {[%clk 01:29:22]} {[%emt
00:00:34]} Bd7 {[%clk 01:32:15]} {[%emt 00:00:06]} 7. Bxd7+ {[%clk 01:26:34]}
{[%emt 00:03:19]} Nbxd7 {[%clk 01:32:19]} {[%emt 00:00:26]} 8. O-O {[%clk
01:26:42]} {[%emt 00:00:22]} Be7 {[%clk 01:32:36]} {[%emt 00:00:14]} 9. c4
{[%clk 01:26:19]} {[%emt 00:00:53]} O-O {[%clk 01:29:47]} {[%emt 00:03:19]} 10.
cxd5 {[%clk 01:22:43]} {[%emt 00:04:06]} Nxd5 {[%clk 01:27:36]} {[%emt
00:02:40]} 11. dxc5 {[%clk 01:20:38]} {[%emt 00:02:36]} Nxc5 {[%clk 01:27:35]}
{[%emt 00:00:31]} 12. Nb3 {[%clk 01:20:42]} {[%emt 00:00:26]} Ne6 {[%clk
01:23:54]} {[%emt 00:04:12]} 13. Nbd4 {[%clk 01:16:44]} {[%emt 00:04:28]} Nxd4
{[%clk 01:23:34]} {[%emt 00:00:49]} 14. Qxd4 {[%clk 01:17:03]} {[%emt
00:00:10]} Bf6 {[%clk 01:23:34]} {[%emt 00:00:31]} 15. Qa4 {[%clk 01:15:43]}
{[%emt 00:01:50]} Qb6 {[%clk 01:13:06]} {[%emt 00:10:57]} 16. Bd2 {[%clk
01:10:32]} {[%emt 00:05:41]} Rac8 {[%clk 01:10:22]} {[%emt 00:03:14]} 17. Rab1
{[%clk 01:08:28]} {[%emt 00:02:34]} a6 {[%clk 00:59:32]} {[%emt 00:11:20]} 18.
Rfd1 {[%clk 00:54:04]} {[%emt 00:14:54]} Qe6 {[%clk 00:51:29]} {[%emt
00:08:34]} 19. Qb3 {[%clk 00:52:54]} {[%emt 00:01:40]} Nb6 {[%clk 00:46:52]}
{[%emt 00:05:07]} 20. Qxe6 {[%clk 00:48:53]} {[%emt 00:04:31]} fxe6 {[%clk
00:47:09]} {[%emt 00:00:13]} 21. Re1 {[%clk 00:45:16]} {[%emt 00:04:07]} Kf7
{[%clk 00:45:14]} {[%emt 00:02:25]} 22. Ng5+ {[%clk 00:44:47]} {[%emt
00:00:59]} Bxg5 {[%clk 00:45:36]} {[%emt 00:00:09]} 23. Bxg5 {[%clk 00:45:13]}
{[%emt 00:00:04]} Rc2 {[%clk 00:43:57]} {[%emt 00:02:09]} 24. Rec1 {[%clk
00:41:06]} {[%emt 00:04:37]} Rfc8 {[%clk 00:43:56]} {[%emt 00:00:29]} 25. Rxc2
{[%clk 00:37:06]} {[%emt 00:04:31]} Rxc2 {[%clk 00:44:18]} {[%emt 00:00:08]} 26.
Be3 {[%clk 00:37:28]} {[%emt 00:00:08]} Nc4 {[%clk 00:32:32]} {[%emt 00:12:17]}
27. Bd4 {[%clk 00:35:04]} {[%emt 00:02:54]} b5 {[%clk 00:32:35]} {[%emt
00:00:27]} 28. h3 {[%clk 00:31:51]} {[%emt 00:03:42]} b4 {[%clk 00:19:52]}
{[%emt 00:13:13]} 29. b3 {[%clk 00:26:43]} {[%emt 00:05:38]} e5 {[%clk
00:15:53]} {[%emt 00:04:30]} 30. Ba7 {[%clk 00:16:28]} {[%emt 00:10:46]} Nd2
{[%clk 00:14:38]} {[%emt 00:01:45]} 31. Ra1 {[%clk 00:16:41]} {[%emt 00:00:16]}
Ke6 {[%clk 00:14:45]} {[%emt 00:00:22]} 32. Be3 {[%clk 00:16:09]} {[%emt
00:01:02]} Kd5 {[%emt 00:10:52]} 1/2-1/2